bitfinex-derivatives/quotes_BTCF0:USTF0_20250426
["timestamp","ask_amount","ask_price","bid_price","bid_amount"]
[1745663841805,0.7316594,94372.0,94371.0,0.22815811]
[1745663844301,0.7316594,94372.0,94371.0,0.22816536]
[1745663845605,0.7316594,94372.0,94371.0,0.2118616]
[1745663847709,0.2118616,94371.0,94370.0,0.0307]
[1745663847912,0.2648761,94358.0,94357.0,0.2118825]
[1745663848115,0.5148761,94358.0,94357.0,0.2118825]
[1745663848314,0.461902,94358.0,94357.0,0.2648543]
[1745663849118,0.695202,94358.0,94357.0,0.2648543]
[1745663849620,0.695202,94358.0,94357.0,0.27287911]
[1745663850619,0.4833,94358.0,94357.0,0.27287911]
[1745663850824,0.2206,94358.0,94357.0,0.27287911]
[1745663851318,0.02,94358.0,94357.0,0.64977762]
[1745663851511,0.0311,94371.0,94370.0,0.2118639]
[1745663851711,0.08,94371.0,94370.0,0.25655436]
[1745663852217,0.08,94371.0,94370.0,0.31765436]
[1745663853813,0.07205056,94371.0,94370.0,0.31765436]
[1745663855014,0.07205056,94371.0,94370.0,0.31811984]
[1745663855207,0.0311,94378.0,94370.0,0.31811984]
[1745663855412,0.0911,94378.0,94377.0,0.2118482]
[1745663855617,0.0911,94378.0,94377.0,0.24083081]
[1745663856323,0.0911,94378.0,94377.0,0.33493081]
[1745663857025,0.0911,94378.0,94377.0,0.33492911]
[1745663858714,0.0911,94378.0,94377.0,0.3349288]
[1745663858929,0.06,94378.0,94377.0,0.3349288]
[1745663859826,0.06,94378.0,94377.0,0.6957288]
[1745663860513,0.06,94378.0,94377.0,0.69572846]
[1745663865327,0.06,94378.0,94377.0,0.71180383]
[1745663866224,0.228,94378.0,94377.0,0.71180383]
[1745663867919,0.228,94378.0,94377.0,0.68070383]
[1745663868121,0.06,94378.0,94377.0,0.31990383]
[1745663869332,0.228,94378.0,94377.0,0.31990383]
[1745663869831,0.228,94378.0,94377.0,0.31990436]
[1745663870132,0.228,94378.0,94377.0,0.25690436]
[1745663870828,0.228,94378.0,94377.0,0.24082899]
[1745663873431,0.228,94378.0,94377.0,0.24082974]
[1745663874623,0.528,94378.0,94377.0,0.24082974]
[1745663875233,0.528,94378.0,94377.0,0.24082975]
[1745663877126,0.5903,94378.0,94377.0,0.24082975]
[1745663881230,0.3403,94378.0,94377.0,0.24082975]
[1745663881431,0.3403,94378.0,94377.0,0.30402975]
[1745663881632,0.3101,94378.0,94377.0,0.30402975]
[1745663882133,0.3426,94378.0,94377.0,0.30402975]
[1745663883131,0.1746,94378.0,94377.0,0.30402975]
[1745663886239,0.3426,94378.0,94377.0,0.30402975]
[1745663886841,0.3426,94378.0,94377.0,0.30402966]
[1745663887241,0.3426,94378.0,94377.0,0.30402939]
[1745663888245,1.1052459,94378.0,94377.0,0.01242051]
[1745663888438,1.1052459,94378.0,94377.0,0.22426871]
[1745663888641,0.8934,94378.0,94377.0,0.22426871]
[1745663888932,1.1052459,94378.0,94377.0,0.22426871]
[1745663890034,0.8934,94378.0,94377.0,0.22426871]
[1745663890644,0.8934,94378.0,94377.0,0.24083109]
[1745663892241,0.8934,94378.0,94377.0,0.24083191]
[1745663892747,0.8934,94378.0,94377.0,0.24083132]
[1745663894039,1.1052459,94378.0,94377.0,0.24083132]
[1745663894445,1.1052459,94378.0,94377.0,0.24083138]
[1745663895746,0.8934,94378.0,94377.0,0.24083138]
[1745663896047,1.1052459,94378.0,94377.0,0.24083138]
[1745663897154,0.7444459,94378.0,94377.0,0.24083138]
[1745663897351,0.7444459,94378.0,94377.0,0.22840999]
[1745663897555,0.7444459,94378.0,94377.0,0.24083138]
[1745663901750,0.7444459,94378.0,94377.0,0.24083146]
[1745663902353,0.7444459,94378.0,94377.0,0.22426959]
[1745663904549,0.5326,94378.0,94377.0,0.22426959]
[1745663904950,0.5001,94378.0,94377.0,0.22426959]
[1745663905154,0.5001,94378.0,94377.0,0.28746959]
[1745663905748,0.5001,94378.0,94377.0,0.30403198]
[1745663906656,0.7119459,94378.0,94377.0,0.30403198]
[1745663907656,0.2801,94378.0,94377.0,0.30403198]
[1745663908263,0.1121,94378.0,94377.0,0.30403198]
[1745663908562,0.1121,94378.0,94377.0,0.30403202]
[1745663908759,0.1121,94378.0,94377.0,0.2750482]
[1745663908954,0.1121,94378.0,94377.0,0.30403154]
[1745663910558,0.1121,94378.0,94377.0,0.30403144]
[1745663912460,0.08,94378.0,94377.0,0.30403144]
[1745663913963,0.08,94378.0,94377.0,0.32002236]
[1745663914170,0.08,94378.0,94377.0,0.32002156]
[1745663914758,0.08,94378.0,94377.0,0.30403064]
[1745663915865,0.08,94378.0,94377.0,0.28746959]
[1745663916068,0.08,94378.0,94377.0,0.30403052]
[1745663919272,0.3608,94407.0,94386.0,0.211828]
[1745663919468,0.031,94387.0,94386.0,0.60160867]
[1745663919676,0.0305,94393.0,94390.0,0.211819]
[1745663919860,0.0213,94391.0,94390.0,0.24079967]
[1745663920364,0.01335246,94391.0,94390.0,0.25683472]
[1745663920559,0.01335246,94391.0,94390.0,0.31923472]
[1745663920963,0.01335246,94391.0,94390.0,0.30319967]
[1745663921160,0.01335246,94391.0,94390.0,0.30419967]
[1745663922372,0.0305,94393.0,94390.0,0.10834749]
[1745663922670,0.0305,94393.0,94392.0,0.2118145]
[1745663922973,0.0305,94393.0,94392.0,0.24079517]
[1745663923174,0.0305,94393.0,94392.0,0.32036199]
[1745663924174,0.0305,94393.0,94392.0,0.32136199]
[1745663924671,0.0305,94393.0,94392.0,0.32036199]
[1745663924875,0.0305,94393.0,94392.0,0.32035992]
[1745663925671,0.0316,94403.0,94397.0,0.2118033]
[1745663925973,0.0152,94398.0,94397.0,0.2407819]
[1745663926164,0.0152,94398.0,94397.0,0.25674872]
[1745663926569,0.0152,94398.0,94397.0,0.25674523]
[1745663926966,0.0152,94398.0,94397.0,0.28734523]
[1745663927782,0.0152,94398.0,94397.0,0.24077841]
[1745663928269,0.1832,94398.0,94397.0,0.24077841]
[1745663928667,0.2446,94398.0,94397.0,0.24077841]
[1745663930276,0.2446,94398.0,94397.0,0.24077859]
[1745663933674,0.2446,94398.0,94397.0,0.24077856]
[1745663934683,0.2446,94398.0,94397.0,0.24077868]
[1745663935473,0.2446,94398.0,94397.0,0.24077871]
[1745663939881,0.2446,94398.0,94397.0,0.22422132]
[1745663940081,0.456401,94398.0,94397.0,0.2407788]
[1745663940887,0.456401,94398.0,94397.0,0.24077889]
[1745663944274,0.288401,94398.0,94397.0,0.24077889]
[1745663945077,0.456401,94398.0,94397.0,0.24077889]
[1745663945278,0.456401,94398.0,94397.0,0.22836078]
[1745663945483,0.2446,94398.0,94397.0,0.22836078]
[1745663946085,0.2446,94398.0,94397.0,0.29136078]
[1745663946285,0.0766,94398.0,94397.0,0.30377886]
[1745663946991,0.0152,94398.0,94397.0,0.30377886]
[1745663947285,0.0313,94411.0,94399.0,0.0529492]
[1745663947581,0.0328,94410.0,94409.0,0.2117764]
[1745663947786,0.1528,94410.0,94409.0,0.24075196]
[1745663947988,0.1841,94410.0,94409.0,0.24075196]
[1745663948180,0.3521,94410.0,94409.0,0.24075196]
[1745663948887,0.5638741,94410.0,94409.0,0.24075196]
[1745663949782,0.5638741,94410.0,94409.0,0.24968911]
[1745663950589,0.5638741,94410.0,94409.0,0.24968871]
[1745663951894,0.3521,94410.0,94409.0,0.24968871]
[1745663952486,0.3521,94410.0,94409.0,0.24968844]
[1745663955086,0.5638741,94410.0,94409.0,0.24968844]
[1745663957685,0.5638741,94410.0,94409.0,0.24968847]
[1745663958289,0.4438741,94410.0,94409.0,0.03791207]
[1745663958490,0.9097941,94410.0,94409.0,0.02997492]
[1745663958790,0.9097941,94410.0,94409.0,0.02997521]
[1745663959383,0.9097941,94410.0,94409.0,0.01755739]
[1745663959779,0.9097941,94410.0,94409.0,0.22933379]
[1745663960289,0.8038741,94410.0,94409.0,0.22933373]
[1745663962482,0.5921,94410.0,94409.0,0.22933373]
[1745663962687,0.3221,94410.0,94409.0,0.22933373]
[1745663962993,0.258,94410.0,94409.0,0.59013373]
[1745663963194,0.09,94410.0,94409.0,0.59013373]
[1745663963492,0.09,94410.0,94409.0,0.65373373]
[1745663964289,0.09,94410.0,94409.0,0.65273373]
[1745663964483,0.09,94410.0,94409.0,0.65273346]
[1745663967604,0.1221,94410.0,94409.0,0.65273346]
[1745663969183,0.2901,94410.0,94409.0,0.65273346]
[1745663971585,0.258,94410.0,94409.0,0.65273141]
[1745663972190,0.09,94410.0,94409.0,0.65273141]
[1745663972796,0.09,94410.0,94409.0,0.29193141]
[1745663973000,0.09,94410.0,94409.0,0.65273141]
[1745663973196,0.258,94410.0,94409.0,0.65273141]
[1745663974892,0.258,94410.0,94409.0,0.58913141]
[1745663976095,0.258,94410.0,94409.0,0.62013141]
[1745663976695,0.258,94410.0,94409.0,0.62013146]
[1745663977292,0.258,94410.0,94409.0,0.58913146]
[1745663978294,0.258,94410.0,94409.0,0.62243146]
[1745663978994,0.258,94410.0,94409.0,0.26163146]
[1745663979187,0.258,94410.0,94409.0,0.62243146]
[1745663980297,0.2886,94410.0,94409.0,0.62243146]
[1745663980795,0.3209,94410.0,94409.0,0.62243146]
[1745663981890,0.3209,94410.0,94409.0,0.26163146]
[1745663982091,0.3209,94410.0,94409.0,0.62243146]
[1745663983505,0.2886,94410.0,94409.0,0.62243146]
[1745663983703,0.2886,94410.0,94409.0,0.6058764]
[1745663983900,0.2886,94410.0,94409.0,0.65333138]
[1745663984498,0.2886,94410.0,94409.0,0.29253138]
[1745663984695,0.2886,94410.0,94409.0,0.65333138]
[1745663990712,0.2886,94410.0,94409.0,0.65333115]
[1745663995914,0.2886,94410.0,94409.0,0.65333117]
[1745663997411,0.2886,94410.0,94409.0,0.29253117]
[1745663997631,0.2886,94410.0,94409.0,0.65333118]
[1745663997912,0.2886,94410.0,94409.0,0.22833118]
[1745664001014,0.2886,94410.0,94409.0,0.22833203]
[1745664001813,0.6703741,94410.0,94409.0,0.22833203]
[1745664002207,0.6703741,94410.0,94409.0,0.22833209]
[1745664005714,0.6703741,94410.0,94409.0,0.2283323]
[1745664006019,0.4586,94410.0,94409.0,0.2283323]
[1745664006320,0.4586,94410.0,94409.0,0.2583323]
[1745664008623,0.4891,94410.0,94409.0,0.2583323]
[1745664009323,0.4891,94410.0,94409.0,0.25833201]
[1745664018624,0.4891,94410.0,94409.0,0.25833202]
[1745664021529,0.4891,94410.0,94409.0,0.2417764]
[1745664021725,0.4891,94410.0,94409.0,0.25833202]
[1745664038933,0.4891,94410.0,94409.0,0.25833178]
[1745664042143,0.02,94410.0,94409.0,0.25833178]
[1745664042351,0.0013,94421.0,94420.0,0.2117517]
[1745664042650,0.03,94427.0,94426.0,0.2117382]
[1745664042846,0.06,94427.0,94426.0,0.22829358]
[1745664043240,0.228,94427.0,94426.0,0.22829358]
[1745664043441,0.2582,94427.0,94426.0,0.29159358]
[1745664044245,0.2582,94427.0,94426.0,0.29159057]
[1745664044442,0.2582,94427.0,94426.0,0.30193743]
[1745664045741,0.2582,94427.0,94426.0,0.30293743]
[1745664050953,0.2582,94427.0,94426.0,0.29259057]
[1745664051246,0.2912,94427.0,94426.0,0.29258994]
[1745664052749,0.2912,94427.0,94426.0,0.29259002]
[1745664053254,0.198,94427.0,94426.0,0.30329093]
[1745664053753,0.198,94427.0,94426.0,0.30329065]
[1745664054051,0.2281,94427.0,94426.0,0.30329065]
[1745664054454,0.2281,94427.0,94426.0,0.30329068]
[1745664054854,0.2943,94427.0,94426.0,0.22928977]
[1745664057951,0.2943,94427.0,94426.0,0.22929052]
[1745664059654,0.2943,94427.0,94426.0,0.22917718]
[1745664061155,0.2943,94427.0,94426.0,0.22917297]
[1745664061950,0.796036,94427.0,94426.0,0.22917297]
[1745664062346,0.796036,94427.0,94426.0,0.2127382]
[1745664063855,0.796036,94427.0,94426.0,0.001]
[1745664064156,0.3176365,94423.0,94422.0,0.2117382]
[1745664064360,0.6676365,94423.0,94422.0,0.2117382]
[1745664064656,0.4029367,94423.0,94420.0,0.2117502]
[1745664064956,0.2117539,94421.0,94420.0,0.2117502]
[1745664065163,0.7397539,94421.0,94420.0,0.2117502]
[1745664065356,0.8023539,94421.0,94420.0,0.2117502]
[1745664065958,0.8023539,94421.0,94420.0,0.2127502]
[1745664068758,0.6023539,94421.0,94420.0,0.2127502]
[1745664068961,0.3906,94421.0,94420.0,0.2127502]
[1745664069258,0.6023495,94421.0,94420.0,0.2127502]
[1745664069562,0.6023495,94421.0,94420.0,0.2458502]
[1745664070759,0.6023495,94421.0,94420.0,0.26240431]
[1745664072156,0.5723495,94421.0,94420.0,0.26240431]
[1745664072361,0.5723495,94421.0,94420.0,0.32400431]
[1745664072556,0.5723495,94421.0,94420.0,0.29280431]
[1745664073956,0.328,94421.0,94420.0,0.29280431]
[1745664074156,0.033,94429.0,94427.0,0.211736]
[1745664074355,0.0552,94428.0,94427.0,0.22829011]
[1745664074861,0.0552,94428.0,94427.0,0.28999011]
[1745664075056,0.2232,94428.0,94427.0,0.28999011]
[1745664075649,0.2232,94428.0,94427.0,0.29099011]
[1745664077166,0.0552,94428.0,94427.0,0.29099011]
[1745664077357,0.1191,94428.0,94427.0,0.22929011]
[1745664077959,0.1191,94428.0,94427.0,0.22928849]
[1745664078154,0.2871,94428.0,94427.0,0.22928849]
[1745664078355,0.3192,94428.0,94427.0,0.22928849]
[1745664079657,0.3192,94428.0,94427.0,0.2292881]
[1745664083063,0.3192,94428.0,94427.0,0.212736]
[1745664083368,0.3192,94428.0,94427.0,0.22928817]
[1745664085963,0.3192,94428.0,94427.0,0.212736]
[1745664087461,0.3192,94428.0,94427.0,0.244036]
[1745664088168,0.2863,94428.0,94427.0,0.244036]
[1745664088865,0.2863,94428.0,94427.0,0.26058801]
[1745664089164,0.2863,94428.0,94427.0,0.29308801]
[1745664089555,0.2553,94428.0,94427.0,0.29308801]
[1745664091662,0.2553,94428.0,94427.0,0.29308785]
[1745664098570,0.2553,94428.0,94427.0,0.29308782]
[1745664102062,0.2553,94428.0,94427.0,0.29308777]
[1745664107276,0.2553,94428.0,94427.0,0.29308782]
[1745664110775,0.2553,94428.0,94427.0,0.29308785]
[1745664112474,0.2553,94428.0,94427.0,0.29308787]
[1745664114180,0.2553,94428.0,94427.0,0.29308782]
[1745664117585,0.2553,94428.0,94427.0,0.29308759]
[1745664122286,0.2553,94428.0,94427.0,0.29308791]
[1745664124182,0.2553,94428.0,94427.0,0.29308794]
[1745664124384,0.2553,94428.0,94427.0,0.22928794]
[1745664124581,0.5453,94428.0,94427.0,0.22928794]
[1745664125986,0.5453,94428.0,94427.0,0.22928811]
[1745664127685,0.3253,94428.0,94427.0,0.22928811]
[1745664127888,0.3253,94428.0,94427.0,0.26158811]
[1745664129279,0.3253,94428.0,94427.0,0.26158799]
[1745664159393,0.3253,94428.0,94427.0,0.26158827]
[1745664160699,0.5253,94428.0,94427.0,0.22928827]
[1745664160896,0.0529362,94423.0,94418.0,0.3608]
[1745664161100,0.2117589,94419.0,94418.0,0.2117495]
[1745664161406,0.5517589,94419.0,94418.0,0.2117495]
[1745664161998,0.34,94419.0,94418.0,0.2117495]
[1745664162194,0.5387,94419.0,94418.0,0.2117495]
[1745664162502,0.6047,94419.0,94418.0,0.2117495]
[1745664162905,0.6057,94419.0,94418.0,0.2127495]
[1745664166207,0.4057,94419.0,94418.0,0.2127495]
[1745664167499,0.6174539,94419.0,94418.0,0.2127495]
[1745664171810,0.7874539,94419.0,94418.0,0.2127495]
[1745664172913,0.7874539,94419.0,94418.0,0.22930347]
[1745664175408,0.7874539,94419.0,94418.0,0.2127495]
[1745664177005,0.5757,94419.0,94418.0,0.2127495]
[1745664177201,0.5757,94419.0,94418.0,0.2432495]
[1745664179408,0.5757,94419.0,94418.0,0.25980347]
[1745664181815,0.7874539,94419.0,94418.0,0.25980347]
[1745664184213,0.5757,94419.0,94418.0,0.25980347]
[1745664186414,0.7874539,94419.0,94418.0,0.25980347]
[1745664194616,0.5757,94419.0,94418.0,0.25980347]
[1745664196115,0.5428,94419.0,94418.0,0.25980347]
[1745664196718,0.5121,94419.0,94418.0,0.25980347]
[1745664197023,0.3121,94419.0,94418.0,0.29240338]
[1745664197620,0.279,94419.0,94418.0,0.29240338]
[1745664198221,0.111,94419.0,94418.0,0.29240338]
[1745664198617,0.111,94419.0,94418.0,0.29240173]
[1745664199320,0.001,94419.0,94418.0,0.29240173]
[1745664203222,0.169,94419.0,94418.0,0.65320173]
[1745664204222,0.001,94419.0,94418.0,0.65320173]
[1745664205617,0.001,94419.0,94418.0,0.29240173]
[1745664205818,0.001,94419.0,94418.0,0.65320173]
[1745664206125,0.169,94419.0,94418.0,0.65320173]
[1745664209016,0.169,94419.0,94418.0,0.65320175]
[1745664210717,0.169,94419.0,94418.0,0.65320235]
[1745664213830,0.169,94419.0,94418.0,0.29240235]
[1745664214032,0.169,94419.0,94418.0,0.65320235]
[1745664214532,0.169,94419.0,94418.0,0.29240235]
[1745664214735,0.169,94419.0,94418.0,0.65320235]
[1745664215935,0.169,94419.0,94418.0,0.29240235]
[1745664216136,0.169,94419.0,94418.0,0.65320235]
[1745664217334,0.169,94419.0,94418.0,0.29240235]
[1745664217534,0.169,94419.0,94418.0,0.65320235]
[1745664221022,0.179,94419.0,94418.0,0.29240235]
[1745664221231,0.179,94419.0,94418.0,0.65320248]
[1745664223028,0.179,94419.0,94418.0,0.29240248]
[1745664223234,0.179,94419.0,94418.0,0.65320248]
[1745664224134,0.179,94419.0,94418.0,0.59010248]
[1745664224524,0.179,94419.0,94418.0,0.22930385]
[1745664224828,0.2097,94419.0,94418.0,0.22930385]
[1745664225931,0.4214539,94419.0,94418.0,0.22930385]
[1745664228132,0.4214539,94419.0,94418.0,0.22930353]
[1745664228937,0.2097,94419.0,94418.0,0.22930353]
[1745664230739,0.4214539,94419.0,94418.0,0.22930353]
[1745664231345,0.2097,94419.0,94418.0,0.22930353]
[1745664231645,0.2097,94419.0,94418.0,0.22930354]
[1745664232742,0.4214539,94419.0,94418.0,0.22930354]
[1745664233943,0.2097,94419.0,94418.0,0.22930354]
[1745664235745,0.4214539,94419.0,94418.0,0.22930354]
[1745664238841,0.4214539,94419.0,94418.0,0.26220354]
[1745664240639,0.2097,94419.0,94418.0,0.26220354]
[1745664240842,0.4214539,94419.0,94418.0,0.26220354]
[1745664241546,0.4214539,94419.0,94418.0,0.26220352]
[1745664243252,0.2097,94419.0,94418.0,0.26220351]
[1745664244151,0.4214539,94419.0,94418.0,0.26220351]
[1745664244654,0.2097,94419.0,94418.0,0.26220351]
[1745664244956,0.2097,94419.0,94418.0,0.29500351]
[1745664245144,0.0417,94419.0,94418.0,0.29500351]
[1745664246156,0.2097,94419.0,94418.0,0.29500351]
[1745664246349,0.4214539,94419.0,94418.0,0.29500351]
[1745664246750,0.4214539,94419.0,94418.0,0.26220351]
[1745664247546,0.4214539,94419.0,94418.0,0.22930351]
[1745664248147,0.4214539,94419.0,94418.0,0.22930303]
[1745664249145,0.2097,94419.0,94418.0,0.22930303]
[1745664249950,0.2097,94419.0,94418.0,0.29370303]
[1745664254054,0.2097,94419.0,94418.0,0.22930329]
[1745664254255,0.4214539,94419.0,94418.0,0.22930329]
[1745664254652,0.4214539,94419.0,94418.0,0.22930335]
[1745664257853,0.2097,94419.0,94418.0,0.22930335]
[1745664258847,0.2097,94419.0,94418.0,0.2127495]
[1745664260158,0.2425,94419.0,94418.0,0.2127495]
[1745664261659,0.4542539,94419.0,94418.0,0.2127495]
[1745664265863,0.4542539,94419.0,94418.0,0.22855507]
[1745664266252,0.4542539,94419.0,94418.0,0.22855512]
[1745664271569,0.4542539,94419.0,94418.0,0.22846277]
[1745664272967,0.4542539,94419.0,94418.0,0.2127495]
[1745664281068,0.4542539,94419.0,94418.0,0.22839639]
[1745664281258,0.4542539,94419.0,94418.0,0.22839666]
[1745664282763,0.4542539,94419.0,94418.0,0.25969666]
[1745664283764,0.4214539,94419.0,94418.0,0.25969666]
[1745664284265,0.2097,94419.0,94418.0,0.29171223]
[1745664296176,0.011,94419.0,94418.0,0.2760495]
[1745664296373,0.031,94429.0,94427.0,0.211736]
[1745664296567,0.3608,94449.0,94427.0,0.32743265]
[1745664296568,0.0452,94428.0,94427.0,0.32743265]
[1745664296764,0.0644,94448.0,94440.0,0.2117069]
[1745664296971,0.09286279,94441.0,94440.0,0.58820355]
[1745664297670,0.09286279,94441.0,94440.0,0.61940355]
[1745664298073,0.09386279,94441.0,94440.0,0.65310355]
[1745664299180,0.09386279,94441.0,94440.0,0.6374069]
[1745664299566,0.011,94441.0,94440.0,0.6374069]
[1745664300473,0.011,94441.0,94440.0,0.64789665]
[1745664302279,0.179,94441.0,94440.0,0.64789665]
[1745664306084,0.011,94441.0,94440.0,0.64789665]
[1745664306286,0.001,94441.0,94440.0,0.64789665]
[1745664308081,0.169,94441.0,94440.0,0.64789665]
[1745664309180,0.0618,94450.0,94449.0,0.2116867]
[1745664309378,0.1918,94450.0,94449.0,0.2116867]
[1745664309978,0.1918,94450.0,94449.0,0.2777867]
[1745664310173,0.3598,94450.0,94449.0,0.2777867]
[1745664310382,0.3598,94450.0,94449.0,0.2787867]
[1745664310582,0.3297,94450.0,94449.0,0.2787867]
[1745664314778,0.3297,94450.0,94449.0,0.29490686]
[1745664315180,0.3297,94450.0,94449.0,0.2787867]
[1745664315974,0.298,94450.0,94449.0,0.2787867]
[1745664316174,0.13,94450.0,94449.0,0.29490797]
[1745664318188,0.298,94450.0,94449.0,0.29490797]
[1745664318776,0.298,94450.0,94449.0,0.29485422]
[1745664319282,0.298,94450.0,94449.0,0.2787867]
[1745664320293,0.298,94450.0,94449.0,0.2777867]
[1745664320486,0.298,94450.0,94449.0,0.2787867]
[1745664320880,0.3302,94450.0,94449.0,0.2787867]
[1745664321781,0.3614,94450.0,94449.0,0.2787867]
[1745664322384,0.3614,94450.0,94449.0,0.2126867]
[1745664322580,0.3944,94450.0,94449.0,0.2126867]
[1745664326187,0.3944,94450.0,94449.0,0.22865312]
[1745664329392,0.3944,94450.0,94449.0,0.22860615]
[1745664331197,0.3944,94450.0,94449.0,0.22863885]
[1745664334794,0.3944,94450.0,94449.0,0.22863733]
[1745664336191,0.3944,94450.0,94449.0,0.29083733]
[1745664338688,0.3302,94450.0,94449.0,0.29083733]
[1745664338896,0.2002,94450.0,94449.0,0.29083733]
[1745664339091,0.0322,94450.0,94449.0,0.29083733]
[1745664340195,0.2002,94450.0,94449.0,0.2909069]
[1745664341306,0.2327,94450.0,94449.0,0.2909069]
[1745664341794,0.2002,94450.0,94449.0,0.2909069]
[1745664343590,0.2002,94450.0,94449.0,0.6517069]
[1745664344401,0.2311,94450.0,94449.0,0.6517069]
[1745664345197,0.2311,94450.0,94449.0,0.6356867]
[1745664348803,0.2311,94450.0,94449.0,0.2748867]
[1745664349008,0.2311,94450.0,94449.0,0.6356867]
[1745664349597,0.2311,94450.0,94449.0,0.2748867]
[1745664349805,0.2311,94450.0,94449.0,0.6356867]
[1745664350607,0.2311,94450.0,94449.0,0.5734867]
[1745664350811,0.2511,94450.0,94449.0,0.5734867]
[1745664352308,0.4627844,94450.0,94449.0,0.5734867]
[1745664352809,0.2511,94450.0,94449.0,0.5734867]
[1745664353603,0.2511,94450.0,94449.0,0.2126867]
[1745664356608,0.4627844,94450.0,94449.0,0.2126867]
[1745664357112,0.2511,94450.0,94449.0,0.2126867]
[1745664357705,0.4627844,94450.0,94449.0,0.2126867]
[1745664362017,0.2511,94450.0,94449.0,0.2126867]
[1745664362519,0.2511,94450.0,94449.0,0.2448867]
[1745664363226,0.4627844,94450.0,94449.0,0.2448867]
[1745664363523,0.4627844,94450.0,94449.0,0.2126867]
[1745664364221,0.4627844,94450.0,94449.0,0.2450867]
[1745664364821,0.2511,94450.0,94449.0,0.2450867]
[1745664365021,0.4627844,94450.0,94449.0,0.2450867]
[1745664368817,0.4933844,94450.0,94449.0,0.2450867]
[1745664371319,0.4933844,94450.0,94449.0,0.26070045]
[1745664375227,0.4933844,94450.0,94449.0,0.26071882]
[1745664376823,0.4933844,94450.0,94449.0,0.2450867]
[1745664378627,0.4933844,94450.0,94449.0,0.26071591]
[1745664378825,0.4933844,94450.0,94449.0,0.2450867]
[1745664379128,0.4933844,94450.0,94449.0,0.26071591]
[1745664380213,0.4933844,94450.0,94449.0,0.2450867]
[1745664381625,0.4933844,94450.0,94449.0,0.2126867]
[1745664382621,0.7233844,94450.0,94449.0,0.001]
[1745664384322,1.1900604,94450.0,94449.0,0.001]
[1745664384716,0.2117203,94438.0,94437.0,0.0529276]
[1745664384921,0.3546496,94438.0,94437.0,0.2646324]
[1745664385120,0.5226496,94438.0,94437.0,0.2646324]
[1745664385920,0.5755789,94438.0,94437.0,0.2646324]
[1745664386116,0.5765789,94438.0,94437.0,0.2646324]
[1745664386328,0.5765789,94438.0,94437.0,0.01065339]
[1745664386527,0.2646524,94435.0,94434.0,0.2117201]
[1745664386830,0.3017225,94435.0,94434.0,0.2117201]
[1745664387221,0.4697225,94435.0,94434.0,0.2117201]
[1745664388529,0.4727225,94435.0,94434.0,0.2117201]
[1745664388921,0.4727225,94435.0,94434.0,0.2731201]
[1745664390731,0.261,94435.0,94434.0,0.2731201]
[1745664391830,0.4727181,94435.0,94434.0,0.2731201]
[1745664393028,0.5037181,94435.0,94434.0,0.2731201]
[1745664395522,0.292,94435.0,94434.0,0.2731201]
[1745664398538,0.292,94435.0,94434.0,0.28887146]
[1745664400223,0.292,94435.0,94434.0,0.28892746]
[1745664402229,0.292,94435.0,94434.0,0.28894044]
[1745664403931,0.292,94435.0,94434.0,0.2889135]
[1745664404829,0.292,94435.0,94434.0,0.28884468]
[1745664406541,0.292,94435.0,94434.0,0.2731201]
[1745664409431,0.292,94435.0,94434.0,0.28878527]
[1745664418245,0.292,94435.0,94434.0,0.28897866]
[1745664420552,0.202,94435.0,94434.0,0.28897866]
[1745664421345,0.202,94435.0,94434.0,0.28878207]
[1745664424448,0.202,94435.0,94434.0,0.28900566]
[1745664424649,0.202,94435.0,94434.0,0.28901285]
[1745664425246,0.202,94435.0,94434.0,0.28901309]
[1745664426456,0.202,94435.0,94434.0,0.28895762]
[1745664427060,0.202,94435.0,94434.0,0.28892459]
[1745664427265,0.222,94435.0,94434.0,0.28892459]
[1745664427453,0.222,94435.0,94434.0,0.22752459]
[1745664428260,0.222,94435.0,94434.0,0.22744732]
[1745664428465,0.2527,94435.0,94434.0,0.2117201]
[1745664430563,0.2527,94435.0,94434.0,0.22731497]
[1745664432754,0.2527,94435.0,94434.0,0.25831497]
[1745664434064,0.2527,94435.0,94434.0,0.25882348]
[1745664435357,0.2527,94435.0,94434.0,0.25894425]
[1745664438966,0.2527,94435.0,94434.0,0.25918274]
[1745664440767,0.2527,94435.0,94434.0,0.25917418]
[1745664441565,0.2527,94435.0,94434.0,0.25917463]
[1745664442668,0.2527,94435.0,94434.0,0.25911396]
[1745664443169,0.2527,94435.0,94434.0,0.22811396]
[1745664443974,0.2527,94435.0,94434.0,0.25921396]
[1745664444275,0.2527,94435.0,94434.0,0.25876369]
[1745664444868,0.2527,94435.0,94434.0,0.22766369]
[1745664446167,0.2527,94435.0,94434.0,0.22742371]
[1745664447883,0.2646776,94426.0,94425.0,0.2646661]
[1745664448177,0.2717427,94426.0,94425.0,0.2646661]
[1745664448873,0.3336427,94426.0,94425.0,0.2646661]
[1745664449267,0.5026427,94426.0,94425.0,0.2646661]
[1745664461479,0.5026427,94426.0,94425.0,0.2971661]
[1745664461682,0.5026427,94426.0,94425.0,0.31284278]
[1745664462772,0.5026427,94426.0,94425.0,0.2971661]
[1745664465787,0.5026427,94426.0,94425.0,0.31280733]
[1745664467475,0.5026427,94426.0,94425.0,0.31276849]
[1745664468689,0.5026427,94426.0,94425.0,0.2971661]
[1745664479589,0.5026427,94426.0,94425.0,0.2646661]
[1745664492291,0.2597,94426.0,94425.0,0.2646661]
[1745664492597,0.4714382,94426.0,94425.0,0.2646661]
[1745664498991,0.2597,94426.0,94425.0,0.2646661]
[1745664499195,0.229,94426.0,94425.0,0.6254661]
[1745664499399,0.169,94426.0,94425.0,0.6254661]
[1745664501095,0.179,94426.0,94425.0,0.6254661]
[1745664504801,0.4209382,94426.0,94425.0,0.6254661]
[1745664512003,0.4209382,94426.0,94425.0,0.2646661]
[1745664542614,0.6309382,94426.0,94425.0,0.2646661]
[1745664543617,0.0529373,94422.0,94417.0,0.0529394]
[1745664543815,0.0529383,94420.0,94416.0,0.3608]
[1745664544127,0.2117584,94417.0,94416.0,0.5725603]
[1745664544310,0.5217584,94417.0,94416.0,0.5725603]
[1745664544512,0.5217584,94417.0,94416.0,0.3608]
[1745664545016,0.5217584,94417.0,94416.0,0.3618]
[1745664545314,0.2117652,94414.0,94413.0,0.2647023]
[1745664545516,0.5017652,94414.0,94413.0,0.2647023]